bitfinex/quotes_BTCUSD_20240820
["timestamp","ask_amount","ask_price","bid_price","bid_amount"]
[1724187684691,0.868366,59452.0,59451.0,0.0080542]
[1724187684920,0.842012,59452.0,59451.0,0.0080542]
[1724187685374,0.169202,59452.0,59451.0,0.0703542]
[1724187685589,0.505607,59452.0,59451.0,0.0703542]
[1724187685794,0.169202,59452.0,59451.0,0.0703542]
[1724187686424,0.001,59452.0,59451.0,0.0703542]
[1724187686636,0.169202,59452.0,59451.0,0.0703542]
[1724187687060,0.170202,59452.0,59451.0,0.0703542]
[1724187687282,0.169202,59452.0,59451.0,0.0703542]
[1724187687507,0.507607,59452.0,59451.0,0.0703542]
[1724187687941,0.169202,59452.0,59451.0,0.0703542]
[1724187688590,0.505607,59452.0,59451.0,0.0703542]
[1724187689669,0.169202,59452.0,59451.0,0.0703542]
[1724187691312,0.506607,59452.0,59451.0,0.0703542]
[1724187691551,0.505607,59452.0,59451.0,0.0703542]
[1724187692614,0.507607,59452.0,59451.0,0.0703542]
[1724187693691,0.505607,59452.0,59451.0,0.0703542]
[1724187693902,0.506607,59452.0,59451.0,0.0703542]
[1724187694324,0.505607,59452.0,59451.0,0.0703542]
[1724187694755,0.506607,59452.0,59451.0,0.0703542]
[1724187694975,0.505607,59452.0,59451.0,0.0703542]
[1724187697851,0.507607,59452.0,59451.0,0.0703542]
[1724187699694,0.505607,59452.0,59451.0,0.0703542]
[1724187701180,0.003,59452.0,59451.0,0.0080542]
[1724187701392,0.507607,59452.0,59451.0,0.0080542]
[1724187701643,1.180417,59452.0,59451.0,0.0080542]
[1724187701848,0.844012,59452.0,59451.0,0.0080542]
[1724187702691,0.844012,59452.0,59451.0,0.0080542]
[1724187706699,0.899802,59452.0,59451.0,0.0080542]
[1724187709460,0.563397,59452.0,59451.0,0.0080542]
[1724187709892,0.05679,59452.0,59451.0,0.06648446]
[1724187710317,0.05679,59452.0,59451.0,0.0080542]
[1724187710542,0.704697,59452.0,59451.0,0.0080542]
[1724187710964,0.705697,59452.0,59451.0,0.0080542]
[1724187712692,0.369292,59452.0,59451.0,0.0080542]
[1724187712933,0.705697,59452.0,59451.0,0.0080542]
[1724187713144,1.072102,59452.0,59451.0,0.0080542]
[1724187713364,1.53486064,59452.0,59451.0,0.0080542]
[1724187714240,1.54293339,59452.0,59451.0,0.0010542]
[1724187714501,1.54693339,59452.0,59451.0,0.0010542]
[1724187714919,1.54593339,59452.0,59451.0,0.0010542]
[1724187715371,1.54493339,59452.0,59451.0,0.0010542]
[1724187715597,1.53686064,59452.0,59451.0,0.0010542]
[1724187718603,1.99096564,59452.0,59451.0,0.0010542]
[1724187719882,1.99396564,59452.0,59451.0,0.0010542]
[1724187720301,1.99096564,59452.0,59451.0,0.0010542]
[1724187720734,1.99396564,59452.0,59451.0,0.0010542]
[1724187721979,1.99096564,59452.0,59451.0,0.0010542]
[1724187724569,1.99396564,59452.0,59451.0,0.0010542]
[1724187724970,1.99096564,59452.0,59451.0,0.0010542]
[1724187726946,1.99196564,59452.0,59451.0,0.0010542]
[1724187727132,2.32737064,59452.0,59451.0,0.0010542]
[1724187727451,2.32837064,59452.0,59451.0,0.0010542]
[1724187727657,1.99096564,59452.0,59451.0,0.0010542]
[1724187728940,1.87326564,59452.0,59451.0,0.0010542]
[1724187729148,1.99096564,59452.0,59451.0,0.0010542]
[1724187731988,2.32737064,59452.0,59451.0,0.0010542]
[1724187732428,1.99096564,59452.0,59451.0,0.0010542]
[1724187732848,1.87326564,59452.0,59451.0,0.0010542]
[1724187733063,1.99096564,59452.0,59451.0,0.0010542]
[1724187736718,1.73096564,59452.0,59451.0,0.0010542]
[1724187740729,1.84866564,59452.0,59451.0,0.0010542]
[1724187743604,1.73096564,59452.0,59451.0,0.0010542]
[1724187743823,1.84866564,59452.0,59451.0,0.0010542]
[1724187744452,1.73096564,59452.0,59451.0,0.0010542]
[1724187744671,1.84866564,59452.0,59451.0,0.0010542]
[1724187745956,1.39456064,59452.0,59451.0,0.1410542]
[1724187746595,1.39456064,59452.0,59451.0,0.0010542]
[1724187748396,1.39156064,59452.0,59451.0,0.0010542]
[1724187751266,1.365207,59452.0,59451.0,0.0010542]
[1724187752024,1.36548204,59452.0,59451.0,0.0010542]
[1724187756144,1.39183666,59452.0,59451.0,0.0010542]
[1724187762488,0.25062166,59452.0,59451.0,0.0010542]
[1724187762691,0.22426704,59452.0,59451.0,0.27388092]
[1724187762913,0.05606504,59452.0,59451.0,0.1429542]
[1724187763331,0.56067204,59452.0,59451.0,0.1429542]
[1724187763539,0.22426704,59452.0,59451.0,0.1429542]
[1724187763758,0.22626704,59452.0,59451.0,0.1429542]
[1724187763962,0.56267204,59452.0,59451.0,0.1429542]
[1724187764394,0.56367204,59452.0,59451.0,0.1449542]
[1724187764810,0.22726704,59452.0,59451.0,0.1449542]
[1724187765922,0.22626704,59452.0,59451.0,0.1449542]
[1724187766342,0.22726704,59452.0,59451.0,0.1449542]
[1724187766759,0.05706504,59452.0,59451.0,0.1412542]
[1724187767178,0.22526704,59452.0,59451.0,0.1412542]
[1724187767605,0.37246704,59452.0,59451.0,0.0030542]
[1724187767857,1.46648204,59452.0,59451.0,0.0030542]
[1724187768122,1.74003661,59452.0,59451.0,0.0030542]
[1724187768551,2.07544161,59452.0,59451.0,0.0010542]
[1724187768984,2.07544161,59452.0,59451.0,0.0030542]
[1724187768985,2.07644161,59452.0,59451.0,0.0030542]
[1724187770240,2.07544161,59452.0,59451.0,0.0010542]
[1724187771067,2.07644161,59452.0,59451.0,0.0030542]
[1724187777594,1.92924161,59452.0,59451.0,0.0030542]
[1724187778380,1.94684949,59452.0,59451.0,0.0030542]
[1724187783538,1.61044449,59452.0,59451.0,0.0030542]
[1724187784421,2.06454949,59452.0,59451.0,0.0030542]
[1724187784629,1.72814449,59452.0,59451.0,0.0030542]
[1724187785487,2.06454949,59452.0,59451.0,0.0030542]
[1724187786383,2.06754949,59452.0,59451.0,0.0030542]
[1724187786840,2.06454949,59452.0,59451.0,0.0030542]
[1724187788581,1.61044449,59452.0,59451.0,0.0030542]
[1724187794155,0.97403949,59452.0,59451.0,0.0030542]
[1724187794365,1.28408992,59452.0,59451.0,0.0030542]
[1724187795435,0.94768492,59452.0,59451.0,0.0030542]
[1724187795645,0.93007704,59452.0,59451.0,0.0030542]
[1724187797349,0.93007704,59452.0,59451.0,0.0832542]
[1724187797555,0.59367204,59452.0,59451.0,0.0832542]
[1724187797772,0.93007704,59452.0,59451.0,0.0832542]
[1724187798191,0.59367204,59452.0,59451.0,0.0832542]
[1724187799074,0.25726704,59452.0,59451.0,0.0832542]
[1724187799280,0.05706504,59452.0,59451.0,0.4351592]
[1724187799489,0.05706504,59452.0,59451.0,0.55012462]
[1724187799693,0.05706504,59452.0,59451.0,0.7715702]
[1724187800111,0.05706504,59452.0,59451.0,1.4443922]
[1724187800112,0.05606504,59452.0,59451.0,1.4443922]
[1724187800316,0.05606504,59452.0,59451.0,1.94184923]
[1724187800523,0.05706504,59452.0,59451.0,1.94484923]
[1724187800730,0.05706504,59452.0,59451.0,1.84385926]
[1724187800935,0.05706504,59452.0,59451.0,1.98883956]
[1724187801348,0.05606504,59452.0,59451.0,1.82302324]
[1724187801592,0.05606504,59452.0,59451.0,1.94172324]
[1724187801787,0.05606504,59452.0,59451.0,1.94272324]
[1724187802425,0.05606504,59452.0,59451.0,1.84185926]
[1724187802632,0.05606504,59452.0,59451.0,2.00583804]
[1724187802844,0.05706504,59452.0,59451.0,2.35024904]
[1724187803047,0.05706504,59452.0,59451.0,2.10280504]
[1724187803252,0.05606504,59452.0,59451.0,2.34219858]
[1724187803706,0.05706504,59452.0,59451.0,2.35619858]
[1724187803910,0.000822,59453.0,59452.0,1.550552]
[1724187804118,0.000822,59466.0,59465.0,1.04073]
[1724187804326,0.000822,59466.0,59465.0,1.376062]
[1724187804528,0.000822,59466.0,59465.0,1.399062]
[1724187805206,0.000822,59466.0,59465.0,1.408662]
[1724187805435,0.000822,59466.0,59465.0,1.5497282]
[1724187805653,0.000822,59466.0,59465.0,1.5517282]
[1724187805870,0.000822,59466.0,59465.0,1.5487282]
[1724187806104,0.000822,59466.0,59465.0,1.5497282]
[1724187806307,0.000822,59466.0,59465.0,1.5487282]
[1724187806514,0.000822,59466.0,59465.0,1.5497282]
[1724187806753,0.001822,59466.0,59465.0,1.5647282]
[1724187806970,0.067122,59466.0,59465.0,0.014]
[1724187807180,0.237285,59466.0,59465.0,0.014]
[1724187808020,0.069122,59466.0,59465.0,0.014]
[1724187808894,0.069122,59466.0,59460.0,0.336355]
[1724187808895,0.066122,59466.0,59464.0,0.168168]
[1724187809330,0.069122,59466.0,59465.0,0.009]
[1724187810035,0.002,59465.0,59464.0,0.168168]
[1724187810245,0.001,59462.0,59461.0,0.504531]
[1724187810408,0.002,59462.0,59461.0,0.504531]
[1724187810631,0.066122,59466.0,59461.0,0.504531]
[1724187810632,0.001,59463.0,59462.0,0.168174]
[1724187811015,0.002,59463.0,59462.0,0.168174]
[1724187811422,0.002,59463.0,59462.0,0.504523]
[1724187811796,0.002,59465.0,59463.0,0.168169]
[1724187812013,0.069122,59466.0,59465.0,0.009]
[1724187812411,0.068122,59466.0,59464.0,0.168168]
[1724187812955,0.068122,59466.0,59464.0,0.167168]
[1724187813105,0.000822,59466.0,59465.0,0.3301531]
[1724187813319,0.000822,59466.0,59465.0,0.244966]
[1724187813530,0.000822,59466.0,59465.0,0.0768]
[1724187813986,0.001,59465.0,59464.0,0.009]
[1724187814193,0.002,59465.0,59464.0,0.009]
[1724187814402,0.002,59465.0,59464.0,0.03113736]
[1724187814819,0.002,59465.0,59464.0,0.19930536]
[1724187815115,0.002,59465.0,59464.0,0.168168]
[1724187815445,0.000822,59466.0,59465.0,0.258466]
[1724187816510,0.000822,59466.0,59465.0,0.249466]
[1724187817715,0.000822,59466.0,59465.0,0.0813]
[1724187817921,0.000822,59466.0,59465.0,0.249466]
[1724187818333,0.000822,59466.0,59465.0,0.258466]
[1724187818737,0.000822,59466.0,59465.0,0.687913]
[1724187818942,0.000822,59466.0,59465.0,1.024245]
[1724187819418,0.147622,59466.0,59465.0,0.513498]
[1724187820241,0.069022,59466.0,59465.0,0.513498]
[1724187820656,0.067022,59466.0,59465.0,0.513498]
[1724187820874,0.068022,59466.0,59465.0,0.513498]
[1724187821286,0.067022,59466.0,59465.0,0.513498]
[1724187821914,0.068022,59466.0,59465.0,0.513498]
[1724187822122,0.067022,59466.0,59465.0,0.513498]
[1724187822324,0.069022,59466.0,59465.0,0.513498]
[1724187824583,0.067022,59466.0,59465.0,0.513498]
[1724187825613,0.068022,59466.0,59465.0,0.513498]
[1724187825841,0.000822,59466.0,59465.0,0.603498]
[1724187826058,0.000822,59466.0,59465.0,1.0248146]
[1724187826704,0.067022,59466.0,59465.0,0.513498]
[1724187827129,0.000822,59466.0,59465.0,0.513498]
[1724187827337,0.064022,59469.0,59467.0,0.16816]
[1724187827553,0.064022,59469.0,59468.0,0.168157]
[1724187828405,0.064022,59469.0,59468.0,0.5899534]
[1724187828611,0.064022,59469.0,59468.0,0.2536384]
[1724187828815,0.064022,59469.0,59468.0,0.180157]
[1724187829515,0.000824,59473.0,59468.0,0.348315]
[1724187829733,0.168146,59472.0,59468.0,0.180156]
[1724187829970,0.168146,59472.0,59468.0,0.012]
[1724187829971,0.0798,59472.0,59468.0,0.012]
[1724187830177,0.336298,59471.0,59468.0,0.012]
[1724187830390,0.0798,59472.0,59468.0,0.012]
[1724187830391,0.981372,59469.0,59468.0,0.012]
[1724187830610,0.981372,59469.0,59464.0,0.0009042]
[1724187830611,0.675098,59465.0,59464.0,0.0009042]
[1724187830834,1.099212,59452.0,59451.0,0.0010542]
[1724187831046,1.435617,59452.0,59451.0,0.49334574]
[1724187831259,1.435617,59452.0,59451.0,0.0010542]
[1724187832549,1.318017,59452.0,59451.0,0.0010542]
[1724187833879,0.981612,59452.0,59451.0,0.0010542]
[1724187834119,0.647207,59452.0,59451.0,0.0010542]
[1724187834320,0.983612,59452.0,59451.0,0.0010542]
[1724187834532,0.981612,59452.0,59451.0,0.0010542]
[1724187834959,0.982612,59452.0,59451.0,0.0010542]
[1724187835411,1.318017,59452.0,59451.0,0.0010542]
[1724187835827,1.318017,59452.0,59451.0,0.0040542]
[1724187837578,1.318017,59452.0,59451.0,0.0010542]
[1724187838008,1.319017,59452.0,59451.0,0.0010542]
[1724187838465,1.318017,59452.0,59451.0,0.0010542]
[1724187838908,1.319017,59452.0,59451.0,0.0010542]
[1724187840216,0.566407,59452.0,59451.0,0.0010542]
[1724187840873,0.229002,59452.0,59451.0,0.0010542]
[1724187841078,0.229002,59452.0,59451.0,0.0030542]
[1724187841308,0.168195,59455.0,59451.0,0.0030542]
[1724187841522,0.168195,59455.0,59451.0,0.0010542]
[1724187842021,0.168195,59455.0,59451.0,0.1722592]
[1724187842461,0.233091,59456.0,59452.0,0.0792]
[1724187842668,0.233091,59456.0,59452.0,0.247401]
[1724187843097,0.233091,59456.0,59454.0,0.168196]
[1724187843098,0.0649,59456.0,59454.0,0.168196]
[1724187843301,0.534554,59459.0,59454.0,0.168196]
[1724187843508,0.0637,59460.0,59452.0,0.0792]
[1724187843723,0.0637,59464.0,59452.0,0.0792]
[1724187843932,0.168178,59461.0,59457.0,0.168186]
[1724187844139,0.336349,59462.0,59455.0,0.336384]
[1724187844140,0.001,59456.0,59455.0,0.504578]
[1724187844779,0.336368,59459.0,59453.0,0.168198]
[1724187844989,0.168187,59458.0,59453.0,0.168198]
[1724187845197,0.168189,59457.0,59453.0,0.168198]
[1724187846023,0.168183,59459.0,59455.0,0.168194]
[1724187846227,0.0637,59464.0,59455.0,0.168194]
[1724187846228,0.0637,59464.0,59458.0,0.336367]
[1724187846436,0.231869,59464.0,59460.0,0.168179]
[1724187846646,0.03,59465.0,59462.0,0.168173]
[1724187847280,0.03,59465.0,59463.0,0.168169]
[1724187847491,0.03,59465.0,59462.0,0.168173]
[1724187847911,0.03,59465.0,59462.0,0.168174]
[1724187848364,0.03,59465.0,59462.0,0.2620939]
[1724187848545,0.0654,59468.0,59464.0,0.168168]
[1724187848748,0.0654,59468.0,59463.0,0.168171]
[1724187848749,0.16816,59467.0,59463.0,0.168171]
[1724187851290,0.16816,59467.0,59463.0,0.176171]
[1724187852117,0.336321,59467.0,59463.0,0.008]
[1724187852324,0.168166,59465.0,59463.0,0.008]
[1724187852534,0.336321,59467.0,59463.0,0.008]
[1724187852742,0.168167,59465.0,59463.0,0.008]
[1724187853172,0.0654,59468.0,59463.0,0.008]
[1724187853173,0.947642,59464.0,59463.0,0.008]
[1724187853394,1.349779,59464.0,59463.0,0.008]
[1724187853817,0.168187,59458.0,59454.0,0.0815]
[1724187854036,0.336367,59459.0,59451.0,0.0010542]
[1724187854244,0.168189,59457.0,59453.0,0.168199]
[1724187854453,0.168192,59456.0,59451.0,0.0010542]
[1724187854666,0.168189,59457.0,59453.0,0.168199]
[1724187855359,0.168189,59457.0,59454.0,0.168197]
[1724187855775,0.168186,59458.0,59454.0,0.168197]
[1724187856197,0.0605,59457.0,59454.0,0.168197]
[1724187856854,0.0783,59456.0,59454.0,0.168197]
[1724187857061,0.228689,59457.0,59454.0,0.168197]
[1724187857652,0.0605,59457.0,59454.0,0.168197]
[1724187858692,0.0605,59457.0,59453.0,0.014]
[1724187858693,0.168193,59456.0,59453.0,0.014]
[1724187858914,0.168196,59455.0,59453.0,0.014]
[1724187859124,0.336384,59456.0,59453.0,0.014]
[1724187859125,0.168192,59456.0,59453.0,0.014]
[1724187859545,0.168192,59456.0,59451.0,0.1692592]
[1724187859971,0.168194,59455.0,59454.0,0.011]
[1724187860398,0.168194,59455.0,59451.0,0.0010542]
[1724187860399,0.168197,59454.0,59451.0,0.0010542]
[1724187860820,0.168195,59455.0,59451.0,0.1782582]
[1724187861259,0.168191,59456.0,59452.0,0.168201]
[1724187861676,0.168191,59456.0,59453.0,0.168199]
[1724187861878,0.168191,59456.0,59453.0,0.248299]
[1724187862093,0.228689,59457.0,59453.0,0.248299]
[1724187862322,0.03,59458.0,59456.0,0.16819]
[1724187863370,0.03,59458.0,59457.0,0.168188]
[1724187864208,0.03,59458.0,59456.0,0.511572]
[1724187864411,0.03,59458.0,59457.0,0.168188]
[1724187864618,0.168175,59462.0,59458.0,0.168184]
[1724187864847,0.001,59458.0,59457.0,0.346377]
[1724187865041,0.001,59458.0,59457.0,0.850942]
[1724187865456,0.001,59458.0,59457.0,0.932842]
[1724187866083,0.0626,59464.0,59460.0,0.336357]
[1724187866276,0.0626,59464.0,59461.0,0.168176]
[1724187867037,0.231591,59464.0,59461.0,0.167176]
[1724187867865,0.232591,59464.0,59461.0,0.176176]
[1724187869010,0.064422,59464.0,59461.0,0.176176]
[1724187869223,0.23259,59464.0,59461.0,0.176176]
[1724187870613,0.064422,59464.0,59462.0,0.168174]
[1724187870991,0.064422,59464.0,59461.0,0.177177]
[1724187871641,0.231592,59464.0,59461.0,0.168177]
[1724187872031,0.168172,59463.0,59460.0,0.168178]
[1724187872235,0.231591,59464.0,59460.0,0.168178]
[1724187872858,0.231591,59464.0,59462.0,0.009]
[1724187873069,1.854043,59463.0,59462.0,0.009]
[1724187873279,1.854043,59463.0,59446.0,0.009053]
[1724187873280,0.534582,59455.0,59446.0,0.009053]
[1724187873490,1.350858,59455.0,59446.0,0.009053]
[1724187874756,1.350858,59455.0,59454.0,0.0109042]
[1724187875198,1.01447,59455.0,59454.0,0.0109042]
[1724187876500,2.01359999,59455.0,59454.0,0.0109042]
[1724187876918,2.02666885,59455.0,59454.0,0.0109042]
[1724187877341,2.02666885,59455.0,59454.0,0.0009042]
[1724187877574,2.02366885,59455.0,59454.0,0.0009042]
[1724187877776,2.02866885,59455.0,59454.0,0.0009042]
[1724187878409,0.001,59451.0,59450.0,0.9344542]
[1724187878621,2.65202499,59451.0,59450.0,0.8678542]
[1724187878847,2.75102499,59451.0,59450.0,0.8678542]
[1724187879273,2.75402499,59451.0,59450.0,0.8678542]
[1724187879687,1.78400299,59451.0,59450.0,0.8678542]
[1724187880175,1.79500299,59451.0,59450.0,0.8688542]
[1724187880587,1.78400299,59451.0,59450.0,0.8678542]
[1724187880788,1.78400299,59451.0,59450.0,0.8688542]
[1724187880990,1.79500299,59451.0,59450.0,0.8688542]
[1724187881195,2.08920299,59451.0,59450.0,0.8688542]
[1724187881396,2.10681087,59451.0,59450.0,0.8688542]
[1724187881608,2.08045688,59451.0,59450.0,0.8688542]
[1724187882021,2.08045688,59451.0,59450.0,0.8678542]
[1724187882221,2.06945688,59451.0,59450.0,0.8678542]
[1724187882422,2.07745688,59451.0,59450.0,0.8688542]
[1724187883050,2.06945688,59451.0,59450.0,0.8678542]
[1724187883260,2.07945688,59451.0,59450.0,0.8688542]
[1724187883874,2.08045688,59451.0,59450.0,0.8688542]
[1724187884087,2.10681796,59451.0,59450.0,0.8688542]
[1724187884300,2.10881796,59451.0,59450.0,0.8688542]
[1724187884503,2.44522896,59451.0,59450.0,0.8688542]
[1724187885380,2.44622896,59451.0,59450.0,0.8688542]
[1724187885592,2.15302896,59451.0,59450.0,0.8688542]
[1724187886215,2.45753136,59451.0,59450.0,0.8688542]
[1724187886679,2.15933136,59451.0,59450.0,0.8688542]
[1724187886927,2.15933136,59451.0,59446.0,0.009053]
[1724187886928,2.145887,59447.0,59446.0,0.009053]
[1724187887137,3.17415429,59447.0,59446.0,0.009053]
[1724187887557,3.484221,59447.0,59446.0,0.009053]
[1724187888545,3.459221,59447.0,59446.0,0.009053]
[1724187888744,2.550603,59442.0,59441.0,0.009042]
[1724187888919,3.099803,59442.0,59441.0,0.009042]
[1724187889132,3.097803,59442.0,59441.0,0.009042]
[1724187889350,3.099803,59442.0,59441.0,0.009042]
[1724187889915,3.103803,59442.0,59441.0,0.009042]
[1724187891182,3.103803,59442.0,59414.0,0.0805]
[1724187891183,0.403259,59432.0,59431.0,9e-07]
[1724187891383,1.978678,59432.0,59431.0,9e-07]
[1724187891633,3.16285542,59432.0,59431.0,9e-07]
[1724187891836,3.784273,59432.0,59431.0,9e-07]
[1724187892038,3.83589342,59432.0,59431.0,9e-07]
[1724187892379,1.992308,59427.0,59426.0,1e-06]
[1724187892598,2.84947542,59427.0,59426.0,1e-06]
[1724187893457,0.235,59414.0,59413.0,0.005]
[1724187893670,2.60364193,59414.0,59413.0,0.005]
[1724187893870,3.59050193,59414.0,59413.0,0.005]
[1724187894101,3.29130193,59414.0,59413.0,0.005]
[1724187894326,3.29430193,59414.0,59413.0,0.005]
[1724187894563,3.29130193,59414.0,59413.0,0.005]
[1724187894764,2.73197,59414.0,59413.0,0.005]
[1724187895353,2.65617,59414.0,59413.0,0.005]
[1724187895770,2.15367,59414.0,59413.0,0.005]
[1724187895934,1.75417,59414.0,59413.0,0.005]
[1724187896134,1.82267,59414.0,59413.0,0.005]
[1724187896341,1.89847,59414.0,59413.0,0.005]
[1724187896545,1.82997,59414.0,59413.0,0.005]
[1724187896744,1.83197,59414.0,59413.0,0.005]
[1724187897106,1.99637,59414.0,59413.0,0.005]
[1724187897312,2.35699,59414.0,59413.0,0.005]
[1724187897523,2.35599,59414.0,59413.0,0.005]
[1724187897731,2.33299,59414.0,59413.0,0.005]
[1724187897959,2.38241735,59414.0,59413.0,0.005]
[1724187898167,2.40641735,59414.0,59413.0,0.005]
[1724187898590,2.40441735,59414.0,59413.0,0.005]
[1724187899001,2.40941735,59414.0,59413.0,0.005]
[1724187899433,2.40441735,59414.0,59413.0,0.005]
[1724187899652,2.41541735,59414.0,59413.0,0.005]
[1724187900060,2.41741735,59414.0,59413.0,0.005]
[1724187900518,2.41741735,59414.0,59410.0,0.009042]
[1724187900519,1.659766,59411.0,59410.0,0.009042]
[1724187900948,1.83869335,59411.0,59410.0,0.009042]
[1724187901153,2.17533035,59411.0,59410.0,0.009042]
[1724187901573,2.17533035,59411.0,59404.0,0.009042]
[1724187901574,1.748019,59405.0,59404.0,0.009042]
[1724187901803,2.34479,59405.0,59404.0,0.009042]
[1724187902011,1.508348,59405.0,59404.0,0.009042]
[1724187902429,1.56227535,59405.0,59404.0,0.009042]
[1724187902644,1.171677,59405.0,59404.0,0.009042]
[1724187903253,1.171677,59405.0,59404.0,0.008942]
[1724187903464,0.835006,59405.0,59404.0,0.070342]
[1724187903672,0.841006,59405.0,59404.0,0.070342]
[1724187904075,1.177677,59405.0,59404.0,0.070342]
[1724187904281,0.174335,59405.0,59404.0,0.070342]
[1724187904491,0.006,59405.0,59404.0,0.150242]
[1724187904904,0.168335,59405.0,59404.0,0.150242]
[1724187905321,0.336671,59405.0,59404.0,0.148542]
[1724187905528,0.505006,59405.0,59404.0,0.148542]
[1724187905743,1.178348,59405.0,59404.0,0.148542]
[1724187905946,0.841677,59405.0,59404.0,0.148542]
[1724187906354,0.842677,59405.0,59404.0,0.148542]
[1724187906771,1.042677,59405.0,59404.0,0.008942]
[1724187906983,1.479348,59405.0,59404.0,0.008942]
[1724187907402,1.914419,59405.0,59404.0,0.008942]
[1724187907609,1.916419,59405.0,59404.0,0.008942]
[1724187907829,1.914419,59405.0,59404.0,0.008942]
[1724187908030,2.25309,59405.0,59404.0,0.008942]
[1724187908265,1.884817,59401.0,59400.0,0.25]
[1724187908471,1.962217,59401.0,59400.0,0.25]
[1724187908679,1.962217,59401.0,59400.0,0.081649]
[1724187908680,2.126517,59401.0,59400.0,0.081649]
[1724187908891,2.486211,59401.0,59400.0,0.081649]
[1724187909307,2.486211,59401.0,59400.0,0.070449]
[1724187909535,2.493211,59401.0,59400.0,0.003107]
[1724187909740,2.493211,59401.0,59399.0,3e-07]
[1724187909741,2.25785,59400.0,59399.0,3e-07]
[1724187909993,2.46055,59400.0,59399.0,3e-07]
[1724187911051,2.75475,59400.0,59399.0,3e-07]
[1724187911738,2.76490684,59400.0,59399.0,3e-07]
[1724187911951,2.77235788,59400.0,59399.0,3e-07]
[1724187912355,2.78635788,59400.0,59399.0,3e-07]
[1724187912995,2.77235788,59400.0,59399.0,3e-07]
[1724187913200,2.78635788,59400.0,59399.0,3e-07]
[1724187913854,2.77235788,59400.0,59399.0,3e-07]
[1724187914061,2.02845788,59400.0,59399.0,3e-07]
[1724187914473,2.03245788,59400.0,59399.0,3e-07]
[1724187914879,2.02845788,59400.0,59399.0,3e-07]
[1724187915286,2.01845788,59400.0,59399.0,3e-07]
[1724187915492,2.64935788,59400.0,59399.0,3e-07]
[1724187915761,2.64935788,59400.0,59399.0,0.0009034]
[1724187915762,2.76335788,59400.0,59399.0,0.0009034]
[1724187915970,0.510126,59391.0,59390.0,4e-07]
[1724187916174,1.218877,59391.0,59390.0,4e-07]
[1724187916381,1.992379,59391.0,59390.0,4e-07]
[1724187916585,2.35213,59391.0,59390.0,4e-07]
[1724187916791,2.688881,59391.0,59390.0,4e-07]
[1724187917000,2.35213,59391.0,59390.0,4e-07]
[1724187917206,2.36613,59391.0,59390.0,4e-07]
[1724187917622,2.702881,59391.0,59390.0,4e-07]
[1724187918350,2.688881,59391.0,59390.0,4e-07]
[1724187919074,2.35213,59391.0,59390.0,4e-07]
[1724187919473,1.693179,59391.0,59390.0,4e-07]
[1724187919677,1.515379,59391.0,59390.0,4e-07]
[1724187920105,1.529379,59391.0,59390.0,4e-07]
[1724187921127,1.629379,59391.0,59390.0,4e-07]
[1724187921297,1.652379,59391.0,59390.0,4e-07]
[1724187922213,2.13513,59391.0,59390.0,4e-07]
[1724187922433,2.07153,59391.0,59390.0,4e-07]
[1724187922590,2.06853,59391.0,59390.0,4e-07]
[1724187922791,1.98913,59391.0,59390.0,4e-07]
[1724187923003,1.95213,59391.0,59390.0,4e-07]
[1724187923209,1.615379,59391.0,59390.0,4e-07]
[1724187923380,2.12973,59391.0,59390.0,4e-07]
[1724187923786,2.11773,59391.0,59390.0,4e-07]
[1724187924562,2.12773,59391.0,59390.0,4e-07]
[1724187924888,2.464481,59391.0,59390.0,4e-07]
[1724187925096,2.454481,59391.0,59390.0,4e-07]
[1724187925300,2.48087074,59391.0,59390.0,4e-07]
[1724187926587,2.48787074,59391.0,59390.0,4e-07]
[1724187927002,2.48087074,59391.0,59390.0,4e-07]
[1724187927205,2.51247862,59391.0,59390.0,4e-07]
[1724187927617,2.52229367,59391.0,59390.0,4e-07]
[1724187927950,2.52311567,59391.0,59390.0,4e-07]
[1724187929617,2.53215767,59391.0,59390.0,4e-07]
[1724187932949,2.03080667,59391.0,59390.0,4e-07]
[1724187933146,2.02980667,59391.0,59390.0,4e-07]
[1724187933811,1.68324062,59391.0,59390.0,4e-07]
[1724187935334,1.68624062,59391.0,59390.0,4e-07]
[1724187936015,2.02299162,59391.0,59390.0,4e-07]
[1724187936225,1.68624062,59391.0,59390.0,4e-07]
[1724187936676,2.00899162,59391.0,59390.0,4e-07]
[1724187936876,1.68424062,59391.0,59390.0,4e-07]
[1724187937306,2.02099162,59391.0,59390.0,4e-07]
[1724187937883,2.01799162,59391.0,59390.0,4e-07]
[1724187938059,1.68124062,59391.0,59390.0,4e-07]
[1724187938667,2.01799162,59391.0,59390.0,4e-07]
[1724187939360,2.01899162,59391.0,59390.0,4e-07]
[1724187939575,2.01799162,59391.0,59390.0,4e-07]
[1724187940807,2.50414262,59391.0,59390.0,4e-07]
[1724187941025,2.52714262,59391.0,59390.0,4e-07]
[1724187942402,2.46394262,59391.0,59390.0,4e-07]
[1724187942601,2.45194262,59391.0,59390.0,4e-07]
[1724187943026,2.46594262,59391.0,59390.0,4e-07]
[1724187944653,2.12919162,59391.0,59390.0,4e-07]
[1724187944888,2.04799162,59391.0,59390.0,4e-07]
[1724187945948,2.04299162,59391.0,59390.0,4e-07]
[1724187946255,2.04399162,59391.0,59390.0,4e-07]
[1724187946467,2.04599162,59391.0,59390.0,4e-07]
[1724187948773,2.04299162,59391.0,59390.0,4e-07]
[1724187949701,2.75674262,59391.0,59390.0,4e-07]
[1724187949908,2.75674262,59391.0,59381.0,0.009042]
[1724187949909,2.462411,59382.0,59381.0,4e-07]
[1724187950087,2.92560274,59382.0,59381.0,4e-07]
[1724187950462,2.94860274,59382.0,59381.0,4e-07]
[1724187950670,2.96621062,59382.0,59381.0,4e-07]
[1724187951278,2.424583,59372.0,59371.0,4e-07]
[1724187951487,2.424583,59372.0,59353.0,0.00892382]
[1724187951488,0.735441,59354.0,59353.0,0.00892382]
[1724187951706,1.072402,59354.0,59353.0,0.00063382]
[1724187951895,1.172402,59354.0,59353.0,0.14793382]